bitfinex-derivatives/quotes_SOLF0:USTF0_20250829
["timestamp","ask_amount","ask_price","bid_price","bid_amount"]
[1756429169505,4.12980119,215.04,214.92,7.13]
[1756429169800,5.2,215.03,214.92,7.13]
[1756429171208,4.12980119,215.04,214.92,7.13]
[1756429171407,2.61855872,215.0,214.92,7.13]
[1756429171608,5.2,214.99,214.92,7.13]
[1756429174813,0.80954707,215.08,214.92,7.13]
[1756429175018,5.2,215.03,214.92,7.13]
[1756429175414,4.12647185,215.05,214.92,7.13]
[1756429175614,2.36941253,215.04,214.92,7.13]
[1756429175814,5.2,215.02,214.92,7.13]
[1756429177709,0.80943409,215.11,214.92,7.13]
[1756429177914,5.19,215.07,214.92,7.13]
[1756429184531,5.19,215.07,214.94,7.35]
[1756429194840,5.19,215.07,214.94,29.42]
[1756429195041,5.19,215.07,214.95,7.35]
[1756429195432,5.19,215.07,214.97,7.35]
[1756429199844,2.61654865,215.08,214.97,7.35]
[1756429200041,5.19,215.07,214.97,7.35]
[1756429200844,5.19,215.14,214.99,7.35]
[1756429201050,5.19,215.12,215.02,7.35]
[1756429201550,2.61654865,215.14,215.02,7.35]
[1756429202244,2.61654865,215.12,215.02,7.35]
[1756429202647,5.19,215.11,215.02,7.35]
[1756429203445,2.61654865,215.12,215.02,7.35]
[1756429203640,5.19,215.11,215.02,7.35]
[1756429205746,2.61654865,215.09,214.95,5.20836455]
[1756429206047,5.19,215.08,214.97,7.35]
[1756429209249,2.61654865,215.09,214.97,7.35]
[1756429209454,5.16,215.07,214.97,7.35]
[1756429210256,5.16,215.07,214.97,12.55836455]
[1756429210459,5.16,215.07,214.98,7.66]
[1756429211360,5.16,215.07,214.98,5.20836455]
[1756429211656,5.16,215.07,214.99,7.66]
[1756429211859,2.61654865,215.11,214.99,7.66]
[1756429212159,2.39185487,215.1,215.0,7.66]
[1756429212352,2.39185487,215.09,215.0,7.66]
[1756429212658,7.77654865,215.11,215.0,7.66]
[1756429212855,5.16,215.11,215.03,7.66]
[1756429213256,312.54,215.2,215.03,7.66]
[1756429213558,312.54,215.2,215.08,7.66]
[1756429213559,5.21,215.18,215.08,7.66]
[1756429213755,5.21,215.16,215.08,7.66]
[1756429213958,5.21,215.14,215.05,7.66]
[1756429215060,2.61654865,215.15,215.05,7.66]
[1756429215254,5.21,215.11,215.01,7.66]
[1756429215454,5.21,215.08,215.01,7.66]
[1756429215661,2.61654865,215.07,215.01,7.66]
[1756429215864,5.21,215.15,215.01,7.66]
[1756429216065,5.21,215.15,215.05,7.66]
[1756429216461,5.21,215.13,215.05,7.66]
[1756429216656,5.21,215.1,215.01,7.66]
[1756429217562,2.61654865,215.08,215.01,7.66]
[1756429217765,5.21,215.07,215.01,7.66]
[1756429218460,2.61654865,215.16,215.04,2.61654865]
[1756429218665,5.21,215.15,215.05,7.66]
[1756429219166,2.39493715,215.14,215.05,7.66]
[1756429219357,2.61654865,215.16,215.05,7.66]
[1756429219559,5.21,215.14,215.05,7.66]
[1756429219760,2.39461975,215.13,215.05,7.66]
[1756429219962,5.21,215.14,215.07,2.61654865]
[1756429220163,5.21,215.18,215.08,7.66]
[1756429220463,2.39392148,215.17,215.08,7.66]
[1756429220664,2.39392148,215.16,215.08,7.66]
[1756429220964,2.39398015,215.15,215.08,7.66]
[1756429221261,5.21,215.18,215.08,7.66]
[1756429221465,2.39413853,215.17,215.08,7.66]
[1756429221667,5.21,215.18,215.08,7.66]
[1756429221860,2.3939921,215.17,215.08,7.66]
[1756429222063,5.21,215.18,215.08,7.66]
[1756429222362,5.21,215.18,215.11,7.66]
[1756429222363,2.3946783,215.17,215.11,7.66]
[1756429222566,5.21,215.18,215.11,7.66]
[1756429222761,5.21,215.18,215.07,15.4849132]
[1756429222966,2.39397041,215.17,215.07,10.27654865]
[1756429223264,5.21,215.18,215.08,7.66]
[1756429223968,2.39344351,215.17,215.09,2.61654865]
[1756429224265,5.21,215.18,215.09,2.61654865]
[1756429224456,2.39301603,215.17,215.09,2.61654865]
[1756429224660,5.21,215.18,215.1,7.66]
[1756429227070,5.21,215.19,215.09,2.61654865]
[1756429227262,5.00898585,215.18,215.07,7.66]
[1756429227467,2.61654865,215.18,215.07,7.66]
[1756429228668,5.21,215.19,215.07,7.66]
[1756429228866,2.39192193,215.18,215.09,2.61654865]
[1756429229072,5.21,215.19,215.1,7.66]
[1756429229373,2.39200109,215.18,215.1,7.66]
[1756429229672,5.21,215.19,215.1,7.66]
[1756429240680,5.18,215.25,215.12,7.55]
[1756429240878,5.00567705,215.24,215.12,7.55]
[1756429241179,2.3891284,215.23,215.12,7.55]
[1756429241381,2.61654865,215.24,215.12,7.55]
[1756429243381,2.61654865,215.18,215.12,7.55]
[1756429243685,7.79654865,215.18,215.12,7.55]
[1756429244582,2.61654865,215.22,215.12,7.55]
[1756429244782,7.79654865,215.22,215.12,7.55]
[1756429247882,2.61654865,215.19,215.12,7.55]
[1756429250584,2.61654865,215.16,215.06,5.20836455]
[1756429250785,2.61654865,215.14,215.07,7.55]
[1756429251494,5.18,215.15,215.07,7.55]
[1756429252087,2.61654865,215.14,215.07,7.55]
[1756429257602,2.61654865,215.11,215.03,12.75836455]
[1756429257802,5.18,215.1,215.03,7.55]
[1756429257997,2.61654865,215.08,215.0,7.55]
[1756429258201,5.18,215.07,215.0,7.55]
[1756429258402,2.61654865,215.08,215.0,7.55]
[1756429258703,7.79654865,215.11,215.0,7.55]
[1756429258903,2.38404594,215.1,215.0,7.55]
[1756429259105,7.79654865,215.11,215.0,7.55]
[1756429259505,2.38428181,215.1,215.0,7.55]
[1756429259701,7.79654865,215.11,215.0,7.55]
[1756429259900,2.38365455,215.1,215.0,7.55]
[1756429260096,7.79654865,215.11,215.0,7.55]
[1756429260306,2.3837172,215.1,215.0,7.55]
[1756429260507,7.79654865,215.11,215.0,7.55]
[1756429260707,5.18,215.15,215.05,7.55]
[1756429260898,2.61654865,215.19,215.07,2.61654865]
[1756429261104,2.38549879,215.18,215.08,7.55]
[1756429261305,2.38549879,215.17,215.08,7.55]
[1756429261608,5.18,215.19,215.08,7.55]
[1756429262009,2.61654865,215.2,215.08,5.20836455]
[1756429262306,2.61654865,215.2,215.09,7.55]
[1756429262505,2.61654865,215.2,215.11,7.55]
[1756429262902,7.79654865,215.23,215.11,7.55]
[1756429263107,2.38817299,215.22,215.11,7.55]
[1756429263309,146.86162733,215.29,215.14,7.55]
[1756429263310,5.18,215.28,215.14,7.55]
[1756429263505,2.61654865,215.23,215.15,7.55]
[1756429263810,2.38961087,215.22,215.15,7.55]
[1756429264109,2.61654865,215.23,215.15,7.55]
[1756429264604,5.18,215.22,215.15,7.55]
[1756429264816,2.61654865,215.2,215.11,7.55]
[1756429265007,5.18,215.26,215.11,7.55]
[1756429265312,2.61654865,215.18,215.11,7.55]
[1756429265904,5.18,215.2,215.11,7.55]
[1756429266107,5.18,215.24,215.13,7.47]
[1756429266307,2.39091604,215.23,215.13,7.47]
[1756429266510,2.39091604,215.22,215.13,7.47]
[1756429266711,7.79654865,215.24,215.13,7.47]
[1756429267010,2.39091997,215.23,215.13,7.47]
[1756429267211,2.39091997,215.22,215.13,7.47]
[1756429267411,7.79654865,215.24,215.13,7.47]
[1756429267713,2.39071885,215.23,215.13,7.47]
[1756429267912,2.39071885,215.22,215.13,7.47]
[1756429268110,7.79654865,215.24,215.13,7.47]
[1756429268411,2.39077904,215.23,215.13,7.47]
[1756429268706,2.39077904,215.22,215.13,7.47]
[1756429268913,7.79654865,215.24,215.13,7.47]
[1756429269105,2.39138414,215.23,215.13,7.47]
[1756429269412,2.39138414,215.22,215.13,7.47]
[1756429269712,7.79654865,215.24,215.13,7.47]
[1756429269913,2.39116722,215.23,215.13,7.47]
[1756429270113,7.79654865,215.24,215.13,7.47]
[1756429270316,2.39150981,215.23,215.13,7.47]
[1756429270512,2.61654865,215.24,215.14,7.47]
[1756429271307,5.18,215.26,215.16,7.47]
[1756429271513,2.39150345,215.25,215.16,7.47]
[1756429271713,5.18,215.26,215.16,7.47]
[1756429271914,99.90162733,215.29,215.17,7.47]
[1756429272117,2.39061934,215.28,215.17,7.47]
[1756429272306,102.51817598,215.29,215.17,7.47]
[1756429272510,2.38943884,215.28,215.17,7.47]
[1756429272711,102.51817598,215.29,215.17,7.47]
[1756429272912,2.38665106,215.28,215.17,7.47]
[1756429273213,102.51817598,215.29,215.19,7.47]
[1756429273806,99.90162733,215.29,215.19,7.47]
[1756429274011,5.17,215.34,215.22,7.47]
[1756429274209,2.38132529,215.33,215.22,7.47]
[1756429274414,118.08,215.4,215.22,7.47]
[1756429274415,5.17,215.31,215.22,7.47]
[1756429274815,7.78654865,215.31,215.22,7.47]
[1756429275417,7.78654865,215.36,215.24,7.47]
[1756429275619,2.37877818,215.35,215.24,7.47]
[1756429275917,2.37877818,215.34,215.24,7.47]
[1756429276213,2.61654865,215.33,215.24,7.47]
[1756429276416,7.78654865,215.33,215.24,7.47]
[1756429277112,5.17,215.37,215.24,7.47]
[1756429277313,4.99429246,215.36,215.24,7.47]
[1756429277517,2.37774381,215.35,215.24,7.47]
[1756429277714,2.61654865,215.33,215.24,7.47]
[1756429278321,5.17,215.35,215.24,7.47]
[1756429278514,2.61654865,215.34,215.24,7.47]
[1756429282919,7.78654865,215.34,215.24,7.47]
[1756429283120,2.61654865,215.31,215.24,7.47]
[1756429283819,2.61654865,215.32,215.24,7.47]
[1756429284620,5.17,215.33,215.24,7.47]
[1756429284821,2.61654865,215.35,215.24,7.47]
[1756429285314,5.17,215.36,215.25,2.61654865]
[1756429285520,5.17,215.36,215.26,7.47]
[1756429286615,7.78654865,215.36,215.26,7.47]
[1756429286821,2.61654865,215.3,215.26,7.47]
[1756429287016,5.17,215.35,215.22,7.47]
[1756429288023,2.61654865,215.31,215.22,7.47]
[1756429288717,2.61654865,215.28,215.22,7.47]
[1756429291219,5.17,215.24,215.16,7.47]
[1756429291419,2.61654865,215.22,215.16,7.47]
[1756429292723,5.17,215.24,215.09,312.26]
[1756429292724,2.61654865,215.19,215.1,50.31]
[1756429293224,5.17,215.18,215.1,7.47]
[1756429293425,2.61654865,215.16,215.1,7.47]
[1756429294419,5.17,215.23,215.1,7.47]
[1756429294624,5.17,215.23,215.12,7.47]
[1756429294824,2.61654865,215.22,215.12,7.47]
[1756429295420,5.17,215.27,215.13,2.61654865]
[1756429295624,5.17,215.27,215.16,2.61654865]
[1756429295825,5.17,215.27,215.17,7.47]
[1756429296231,2.61654865,215.29,215.17,7.47]
[1756429296422,2.61654865,215.29,215.2,7.83]
[1756429296829,5.18,215.31,215.2,7.83]
[1756429297931,2.61654865,215.29,215.2,7.83]
[1756429300436,5.18,215.28,215.2,7.83]
[1756429300935,2.61654865,215.22,215.14,7.83]
[1756429301337,2.61654865,215.19,215.14,7.83]
[1756429301536,2.61654865,215.19,215.07,2.61654865]
[1756429301537,7.79654865,215.19,215.09,320.09]
[1756429301931,5.18,215.18,215.09,320.09]
[1756429302641,2.61654865,215.19,215.09,320.09]
[1756429303043,2.61654865,215.19,215.1,7.83]
[1756429303642,5.18,215.22,215.1,7.83]
[1756429303643,5.18,215.22,215.11,7.83]
[1756429304140,2.61654865,215.25,215.11,7.83]
[1756429305736,5.18,215.24,215.11,7.83]
[1756429305939,2.61654865,215.22,215.12,117.9]
[1756429306738,2.61654865,215.22,215.13,7.83]
[1756429307038,2.61654865,215.27,215.14,7.83]
[1756429307239,2.61654865,215.27,215.17,7.83]
[1756429308339,5.18,215.26,215.17,7.83]
[1756429308537,2.61654865,215.24,215.17,7.83]
[1756429309841,5.18,215.23,215.14,61.68]
[1756429311639,2.61654865,215.21,215.12,7.83]
[1756429312139,2.61654865,215.18,215.09,312.26]
[1756429312942,5.18,215.2,215.1,7.83]
[1756429313242,7.79654865,215.2,215.1,7.83]
[1756429315042,2.61654865,215.2,215.1,7.83]
[1756429317646,7.79654865,215.2,215.1,7.83]
[1756429317840,2.61654865,215.21,215.1,7.83]
[1756429318442,5.18,215.24,215.11,2.61654865]
[1756429318639,2.61654865,215.3,215.18,7.83]
[1756429318845,2.61654865,215.34,215.21,7.83]
[1756429319248,2.61654865,215.3,215.21,7.83]
[1756429319441,4.11390561,215.34,215.21,7.83]
[1756429319640,7.5571885,215.33,215.21,7.83]
[1756429319836,5.18,215.33,215.21,7.83]
[1756429321047,4.11390561,215.36,215.21,7.83]
[1756429321249,5.18,215.37,215.25,7.83]
[1756429322244,5.18,215.37,215.25,5.20836455]
[1756429322445,5.18,215.37,215.26,7.83]
[1756429322644,5.18,215.37,215.27,32.2]
[1756429322950,5.18,215.37,215.28,7.83]
[1756429323546,5.18,215.43,215.28,7.83]
[1756429324048,5.18,215.48,215.31,7.83]
[1756429324250,2.37540284,215.47,215.31,7.83]
[1756429324447,7.55540284,215.46,215.31,7.83]
[1756429324647,4.11390561,215.45,215.31,7.83]
[1756429324842,4.11390561,215.45,215.31,57.95]
[1756429325443,7.55211969,215.44,215.31,57.95]
[1756429325647,7.55211969,215.44,215.31,7.83]
[1756429325648,5.18,215.44,215.31,7.83]
[1756429325842,4.11390561,215.45,215.31,7.83]
[1756429326047,5.18,215.4,215.25,7.83]
[1756429326248,4.11390561,215.37,215.26,117.82]
[1756429326450,9.27390561,215.37,215.25,7.83]
[1756429326649,23.11,215.44,215.25,7.83]
[1756429326650,4.11390561,215.33,215.25,7.83]
[1756429327050,5.16,215.32,215.18,7.32]
[1756429327252,4.11390561,215.29,215.18,7.32]
[1756429327651,5.16,215.28,215.18,7.32]
[1756429328047,4.11390561,215.25,215.14,7.32]
[1756429328257,9.27390561,215.25,215.14,7.32]
[1756429328555,4.11390561,215.21,215.14,7.32]
[1756429329450,5.16,215.25,215.14,7.32]
[1756429329855,4.11390561,215.24,215.14,7.32]
[1756429331158,9.27390561,215.2,215.09,7.32]
[1756429331361,9.27390561,215.25,215.11,7.32]
[1756429333657,4.11390561,215.21,215.11,7.32]
[1756429333866,5.18,215.2,215.11,7.32]
[1756429334958,4.11390561,215.17,215.05,125.14]
[1756429336859,5.18,215.16,215.05,7.32]
[1756429337165,4.11390561,215.13,215.05,7.32]
[1756429337661,5.18,215.12,215.0,7.32]
[1756429340570,4.11390561,215.01,214.93,5.1816213]
[1756429340864,4.11390561,215.01,214.84,10.3632426]
[1756429340865,23.26390561,214.97,214.83,7.32]
[1756429341166,9.29390561,214.93,214.83,7.32]
[1756429341363,9.29390561,214.93,214.74,5.1816213]
[1756429341668,4.11390561,214.88,214.75,7.32]
[1756429345369,5.18,214.87,214.75,7.32]
[1756429345565,4.6,214.93,214.75,7.32]
[1756429345566,5.18,214.92,214.75,7.32]
[1756429345866,4.11390561,214.94,214.76,7.32]
[1756429346462,4.11390561,214.9,214.78,7.32]
[1756429346664,5.18,214.85,214.7,60.34]
[1756429346872,4.11390561,214.82,214.71,7.32]
[1756429348968,5.18,215.01,214.78,4.11390561]
[1756429349170,4.11390561,214.95,214.8,7.32]
[1756429351776,4.11390561,214.91,214.8,7.32]
[1756429353875,4.11390561,214.97,214.8,7.32]
[1756429355478,4.11390561,214.97,214.79,4.11390561]
[1756429355479,4.11390561,214.97,214.84,7.32]
[1756429355679,5.18,214.98,214.84,7.32]
[1756429356480,0.03332234,214.93,214.84,7.32]
[1756429356679,5.19,214.92,214.89,0.02990023]
[1756429356880,4.14722795,214.93,214.89,0.02990023]
[1756429357080,5.19,214.92,214.79,7.61]
[1756429358175,4.11390561,215.02,214.79,7.61]
[1756429358384,0.03279511,214.88,214.79,7.61]
[1756429358572,4.11390561,214.95,214.79,7.61]
[1756429358976,0.03571139,214.86,214.79,7.61]
[1756429360382,9.30390561,214.97,214.81,7.61]
[1756429364578,5.23,214.92,214.81,7.61]
[1756429368487,5.23,214.88,214.75,7.61]
[1756429369786,4.11390561,214.85,214.75,7.61]
[1756429370788,5.23,214.84,214.75,7.61]
[1756429373689,5.23,214.84,214.68,7.61]
[1756429373894,5.23,214.84,214.69,7.61]
[1756429374098,9.34390561,214.88,214.69,7.61]
[1756429374298,9.34390561,214.88,214.73,7.61]
[1756429378400,9.34390561,214.84,214.73,7.61]
[1756429378895,4.11390561,214.8,214.68,7.61]
[1756429379099,9.34390561,214.8,214.68,7.61]
[1756429380600,4.11390561,214.72,214.55,7.61]
[1756429380899,4.11390561,214.76,214.55,7.61]
[1756429380900,5.23,214.67,214.55,7.61]
[1756429381500,4.11390561,214.64,214.55,7.61]
[1756429383297,5.23,214.63,214.51,70.42]
[1756429383601,5.23,214.63,214.5,7.61]
[1756429383802,4.11390561,214.64,214.5,7.61]
[1756429384597,5.23,214.63,214.5,7.61]
[1756429385096,4.11390561,214.64,214.5,7.61]
[1756429385299,5.23,214.57,214.42,7.61]
[1756429385496,5.23,214.57,214.43,4.11390561]
[1756429385694,9.34390561,214.61,214.44,7.61]
[1756429387507,9.34390561,214.61,214.44,17.03]
[1756429388110,9.34390561,214.61,214.44,25.41]
[1756429388607,5.26,214.6,214.44,25.41]
[1756429388905,24.75,214.67,214.44,7.61]
[1756429388906,4.11390561,214.57,214.44,7.61]
[1756429389106,4.11390561,214.76,214.44,7.61]
[1756429389107,5.26,214.56,214.44,7.61]
[1756429389411,4.11390561,214.55,214.44,7.61]
[1756429389712,4.11390561,214.55,214.48,0.02983962]
[1756429392608,5.26,214.56,214.48,0.02983962]
[1756429392808,5.26,214.64,214.48,7.32983962]
[1756429393020,4.11390561,214.61,214.48,7.32983962]
[1756429393316,5.26,214.64,214.48,7.3]
[1756429393702,5.26,214.64,214.54,0.02936533]
[1756429398109,5.26,214.6,214.54,0.02936533]
[1756429398413,4.11390561,214.57,214.54,0.02936533]
[1756429398712,5.26,214.6,214.54,0.02936533]
[1756429399617,5.26,214.56,214.46,7.64]
[1756429399822,4.11390561,214.53,214.43,7.3]
[1756429401014,0.03213021,214.5,214.43,7.3]
[1756429401315,0.03213021,214.5,214.38,7.3]
[1756429405513,5.29213021,214.5,214.38,7.3]
[1756429410414,4.11390561,214.49,214.38,7.3]
[1756429411118,0.03282736,214.46,214.38,7.3]
[1756429415621,5.29282736,214.46,214.38,7.3]
[1756429415819,5.29282736,214.46,214.33,313.08]
[1756429415820,4.11390561,214.45,214.33,313.08]
[1756429416017,4.11390561,214.45,214.34,7.3]
[1756429416221,16.75390561,214.45,214.3,7.6]
[1756429416421,0.03364343,214.42,214.3,7.6]
[1756429416724,5.26,214.41,214.3,7.6]
[1756429417426,0.0331783,214.38,214.3,7.6]
[1756429418728,5.2931783,214.38,214.3,7.6]
[1756429418924,5.26,214.36,214.32,0.0323704]
[1756429419125,5.26,214.34,214.32,0.0323704]
[1756429420127,5.72,214.34,214.32,0.0323704]
[1756429420328,5.72,214.34,214.2,7.6]
[1756429420329,5.26,214.29,214.2,7.6]
[1756429421430,4.54,214.28,214.11,7.6]
[1756429422240,0.03440606,214.22,214.11,7.6]
[1756429422736,8.65390561,214.33,214.15,7.6]
[1756429423838,4.11390561,214.36,214.19,7.6]
[1756429424040,0.02941106,214.26,214.21,7.6]
[1756429424436,4.57,214.37,214.23,7.6]
[1756429425939,4.11390561,214.36,214.28,0.02967913]
[1756429426136,4.6,214.35,214.28,0.02967913]
[1756429437362,4.11390561,214.32,214.28,0.02967913]
[1756429437561,4.6,214.31,214.28,0.02967913]
[1756429437760,4.6,214.31,214.21,7.6]
[1756429437957,4.11390561,214.28,214.15,7.82]
[1756429438159,4.6,214.27,214.16,7.6]
[1756429438959,4.11390561,214.31,214.16,7.6]
[1756429439563,4.6,214.3,214.16,7.6]
[1756429440955,4.6,214.3,214.21,0.02942098]
[1756429441158,4.11390561,214.27,214.21,0.02942098]
[1756429441362,4.6,214.26,214.21,0.02942098]
[1756429441659,4.11390561,214.27,214.21,0.02942098]
[1756429441859,4.6,214.26,214.21,0.02942098]
[1756429442057,8.71390561,214.27,214.21,0.02942098]
[1756429443751,4.11390561,214.23,214.21,0.02942098]
[1756429443952,4.6,214.22,214.21,0.02942098]
[1756429444155,4.6,214.22,214.12,7.6]
[1756429444554,8.71390561,214.27,214.12,7.6]
[1756429444863,4.6,214.26,214.12,7.6]
[1756429445558,4.11390561,214.37,214.12,7.6]
[1756429445559,103.45481638,214.45,214.18,7.6]
[1756429445762,4.11390561,214.36,214.2,7.6]
[1756429445962,4.6,214.35,214.2,7.6]
[1756429446363,63.92,214.44,214.22,7.23]
[1756429446364,4.11390561,214.39,214.22,7.23]
[1756429446569,4.61,214.39,214.22,7.23]
[1756429447265,4.11390561,214.36,214.22,7.23]
[1756429447464,4.61,214.31,214.22,7.23]
[1756429447767,4.61,214.31,214.2,18.8]
[1756429448567,4.61,214.27,214.17,7.23]
[1756429448765,4.61,214.27,214.11,7.23]
[1756429448964,4.11390561,214.28,214.11,7.23]
[1756429449361,4.61,214.27,214.11,7.23]
[1756429449867,4.11390561,214.28,214.11,7.23]
[1756429450067,4.61,214.23,214.11,7.23]
[1756429451265,4.11390561,214.24,214.11,7.23]
[1756429451568,4.61,214.19,214.06,7.23]
[1756429452166,4.11390561,214.18,214.06,7.23]
[1756429452368,4.61,214.17,214.06,7.23]
[1756429452565,4.11390561,214.11,213.97,8.04278027]
[1756429452766,8.73390561,214.07,213.97,8.04278027]
[1756429452965,8.73390561,214.07,213.97,7.23]
[1756429453264,4.62,214.07,213.97,7.23]
[1756429454670,4.62,214.04,213.88,4.11390561]
[1756429454871,4.62,214.04,213.89,7.23]
[1756429455269,4.62,214.04,213.9,7.23]
[1756429456070,4.62,214.13,213.93,4.11390561]
[1756429456270,4.62,214.12,213.94,7.23]
[1756429456871,4.62,214.12,213.98,7.23]
[1756429458369,4.62,214.12,213.85,11.88633756]
[1756429458370,4.62,214.08,213.92,7.23]
[1756429460475,4.62,214.08,213.94,7.23]
[1756429462274,4.62,214.08,213.95,7.23]
[1756429463572,5.14766404,214.33,214.04,4.11390561]
[1756429463875,4.62,214.23,214.06,4.11390561]
[1756429464069,4.62,214.19,214.07,7.23]
[1756429464270,4.62,214.15,214.0,7.23]
[1756429466377,8.73390561,214.2,214.01,7.23]
[1756429466572,4.11390561,214.26,214.06,7.23]
[1756429466772,4.62,214.25,214.1,7.23]
[1756429467379,4.62,214.21,214.1,7.23]
[1756429469780,4.62,214.17,214.05,7.23]
[1756429470182,4.11390561,214.14,214.05,7.23]
[1756429470375,4.11390561,214.14,213.99,317.91390561]
[1756429470376,4.11390561,214.14,213.99,313.8]
[1756429470582,4.62,214.09,213.9,4.11390561]
[1756429470778,4.62,214.09,213.92,7.23]
[1756429471981,4.11390561,214.14,213.95,7.23]
[1756429472186,8.73390561,214.14,213.95,7.23]
[1756429473586,8.73390561,214.14,213.99,7.23]
[1756429476991,8.73390561,214.14,213.99,16.57]
[1756429477286,4.62,214.14,214.0,7.78]
[1756429477987,4.11390561,214.15,214.0,7.78]
[1756429478890,4.61,214.17,214.0,7.78]
[1756429479090,8.72390561,214.17,214.0,7.78]
[1756429479590,4.61,214.17,214.01,4.11390561]
[1756429479790,4.61,214.17,214.02,7.78]
[1756429480382,4.61,214.17,214.01,4.11390561]
[1756429480383,4.61,214.23,214.06,7.78]
[1756429480585,4.61,214.23,214.1,7.78]
[1756429481285,4.11390561,214.21,214.1,7.78]
[1756429481483,4.61,214.2,214.1,7.78]
[1756429481691,4.61,214.2,214.12,4.2028]
[1756429482189,4.61,214.2,214.1,7.78]
[1756429483786,4.61,214.2,214.06,65.396]
[1756429483987,4.61,214.17,214.05,7.78]
[1756429484188,8.72390561,214.17,214.05,7.78]
[1756429484387,4.11390561,214.13,213.99,7.78]
[1756429484588,8.72390561,214.09,213.99,7.78]
[1756429485990,8.72390561,214.05,213.93,7.78]
[1756429489086,4.61,214.05,213.93,7.78]
[1756429490094,8.72390561,214.05,213.93,7.78]
[1756429491494,8.72390561,214.05,213.88,75.03552691]
[1756429491495,4.61,214.14,213.97,7.78]
[1756429491706,4.61,214.14,214.01,7.78]
[1756429491993,4.61,214.12,214.01,7.78]
[1756429492297,4.61,214.12,213.96,42.65390561]
[1756429492596,4.61,214.12,213.97,7.78]
[1756429496390,4.61,214.12,213.97,12.9616213]
[1756429496995,4.61,214.12,213.98,7.78]
[1756429499500,4.61,214.12,213.98,5.1816213]
[1756429499696,4.61,214.12,213.99,7.78]
[1756429500293,4.11390561,214.19,214.04,4.11390561]
[1756429500493,4.11390561,214.19,214.05,5.1816213]
[1756429500699,4.61,214.2,214.07,12.9616213]
[1756429500902,4.61,214.25,214.09,5.1816213]
[1756429501104,4.61,214.25,214.11,7.78]
[1756429501294,4.61,214.22,214.11,7.78]
[1756429502404,8.72390561,214.27,214.11,7.78]
[1756429502603,8.72390561,214.27,214.12,12.9616213]
[1756429502903,8.72390561,214.27,214.13,12.9616213]
[1756429503294,8.72390561,214.27,214.13,7.78]
[1756429503497,8.72390561,214.27,214.14,7.78]
[1756429503700,4.11390561,214.31,214.15,4.11390561]
[1756429503900,4.11390561,214.31,214.16,7.78]
[1756429504099,4.61,214.27,214.16,7.78]
[1756429505203,4.11390561,214.24,214.16,7.78]
[1756429505401,4.11390561,214.24,214.11,7.78]
[1756429506509,8.72390561,214.24,214.11,7.78]
[1756429510098,4.11390561,214.28,214.11,12.9616213]
[1756429510304,4.11390561,214.28,214.12,7.24]
[1756429511310,4.61,214.27,214.12,7.24]
[1756429511606,4.11390561,214.24,214.12,7.24]
[1756429511808,4.61,214.23,214.12,7.24]